[Event "*** Titled Tuesday Blitz"]
[Site "Chess.com"]
[Date "2020.04.14"]
[Round "2"]
[White "davigator"]
[Black "ADODOVE"]
[Result "1-0"]
[WhiteElo "2365"]
[BlackElo "1797"]
[TimeControl "180+1"]
[EndTime "10:15:50 PDT"]
[Termination "davigator won on time"]

1. e4 {[%clk 0:03:00.9]} 1... e5 {[%clk 0:02:57.9]} 2. Nf3 {[%clk 0:03:00.2]}
2... Nc6 {[%clk 0:02:57.1]} 3. Bb5 {[%clk 0:03:00.3]} 3... a6 {[%clk 0:02:55.9]}
4. Ba4 {[%clk 0:03:00.3]} 4... Nf6 {[%clk 0:02:56.1]} 5. O-O {[%clk 0:03:00]}
5... Be7 {[%clk 0:02:56.5]} 6. Re1 {[%clk 0:03:00.1]} 6... b5 {[%clk 0:02:56.7]}
7. Bb3 {[%clk 0:02:59.1]} 7... d6 {[%clk 0:02:57]} 8. c3 {[%clk 0:02:58.6]} 8...
O-O {[%clk 0:02:56.6]} 9. h3 {[%clk 0:02:58.5]} 9... Bb7 {[%clk 0:02:55.6]} 10.
d3 {[%clk 0:02:57.9]} 10... Na5 {[%clk 0:02:47.7]} 11. Bc2 {[%clk 0:02:56.2]}
11... c5 {[%clk 0:02:47.8]} 12. Nbd2 {[%clk 0:02:56.1]} 12... Re8 {[%clk
0:02:47.8]} 13. Nf1 {[%clk 0:02:55.9]} 13... Nc6 {[%clk 0:02:47.9]} 14. Ng3
{[%clk 0:02:55.6]} 14... g6 {[%clk 0:02:47.9]} 15. b3 {[%clk 0:02:49]} 15... Bf8
{[%clk 0:02:46.7]} 16. Bb2 {[%clk 0:02:49]} 16... Bg7 {[%clk 0:02:45]} 17. Rc1
{[%clk 0:02:48.3]} 17... Rc8 {[%clk 0:02:44.1]} 18. d4 {[%clk 0:02:48.1]} 18...
exd4 {[%clk 0:02:42.6]} 19. cxd4 {[%clk 0:02:46.8]} 19... Nb4 {[%clk 0:02:28.3]}
20. Bb1 {[%clk 0:02:45.9]} 20... cxd4 {[%clk 0:02:27.3]} 21. Rxc8 {[%clk
0:02:44.5]} 21... Qxc8 {[%clk 0:02:23.1]} 22. Bxd4 {[%clk 0:02:45]} 22... Nc6
{[%clk 0:02:13.4]} 23. Bb2 {[%clk 0:02:39.3]} 23... Nxe4 {[%clk 0:01:44.4]} 24.
Bxg7 {[%clk 0:02:35.8]} 24... Nxg3 {[%clk 0:01:43.4]} 25. Ba1 {[%clk 0:02:28.7]}
25... Nf5 {[%clk 0:01:36.4]} 26. Qd2 {[%clk 0:02:23.7]} 26... Rxe1+ {[%clk
0:01:32]} 27. Nxe1 {[%clk 0:02:22.4]} 27... Qe6 {[%clk 0:01:22.9]} 28. Nf3
{[%clk 0:02:18.3]} 28... Ne5 {[%clk 0:01:13.2]} 29. Nxe5 {[%clk 0:02:15.1]}
29... dxe5 {[%clk 0:01:09.8]} 30. Qd8+ {[%clk 0:02:01.6]} 30... Kg7 {[%clk
0:01:08.5]} 31. f4 {[%clk 0:02:02.2]} 31... f6 {[%clk 0:00:43.7]} 32. fxe5
{[%clk 0:02:00.6]} 32... fxe5 {[%clk 0:00:23.5]} 33. Qc7+ {[%clk 0:01:57.5]}
33... Qe7 {[%clk 0:00:08.2]} 34. Bxe5+ {[%clk 0:01:56.4]} 34... Kf7 {[%clk
0:00:03.1]} 35. Qc3 {[%clk 0:01:52.5]} 1-0

[Event "*** Titled Tuesday Blitz"]
[Site "Chess.com"]
[Date "2020.04.14"]
[Round "2"]
[White "Harut-1998"]
[Black "rasmussvane"]
[Result "0-1"]
[WhiteElo "2588"]
[BlackElo "2883"]
[TimeControl "180+1"]
[EndTime "10:15:51 PDT"]
[Termination "rasmussvane won on time"]

1. d4 {[%clk 0:03:00.9]} 1... d5 {[%clk 0:03:00]} 2. c4 {[%clk 0:03:00.5]} 2...
e6 {[%clk 0:03:00.5]} 3. Nf3 {[%clk 0:03:00.2]} 3... a6 {[%clk 0:03:01]} 4. cxd5
{[%clk 0:02:50.2]} 4... exd5 {[%clk 0:03:01.9]} 5. Nc3 {[%clk 0:02:48.9]} 5...
Nf6 {[%clk 0:03:02.5]} 6. Bg5 {[%clk 0:02:48.2]} 6... Be6 {[%clk 0:03:03.2]} 7.
e3 {[%clk 0:02:47.8]} 7... Nbd7 {[%clk 0:03:03.8]} 8. Bd3 {[%clk 0:02:46.7]}
8... Bd6 {[%clk 0:03:04.3]} 9. O-O {[%clk 0:02:45.6]} 9... c6 {[%clk 0:03:04.7]}
10. Qc2 {[%clk 0:02:14.2]} 10... Qc7 {[%clk 0:03:04.5]} 11. Bh4 {[%clk
0:02:08.2]} 11... h6 {[%clk 0:03:02.4]} 12. Bg3 {[%clk 0:01:55.8]} 12... O-O
{[%clk 0:03:02.5]} 13. Bxd6 {[%clk 0:01:47.4]} 13... Qxd6 {[%clk 0:03:03.4]} 14.
h3 {[%clk 0:01:47.8]} 14... Rfe8 {[%clk 0:03:03.7]} 15. a3 {[%clk 0:01:40.1]}
15... Qe7 {[%clk 0:03:00.4]} 16. Na4 {[%clk 0:01:31]} 16... g6 {[%clk
0:02:59.6]} 17. b4 {[%clk 0:01:23]} 17... Nh5 {[%clk 0:02:39.7]} 18. Nc5 {[%clk
0:01:16.2]} 18... Ndf6 {[%clk 0:02:39.8]} 19. a4 {[%clk 0:01:01.3]} 19... Rec8
{[%clk 0:02:39.1]} 20. Ne5 {[%clk 0:00:55.6]} 20... Ng7 {[%clk 0:02:35.7]} 21.
f3 {[%clk 0:00:44.5]} 21... h5 {[%clk 0:02:13]} 22. e4 {[%clk 0:00:39.2]} 22...
Rd8 {[%clk 0:02:09.8]} 23. Bxa6 {[%clk 0:00:20.9]} 23... bxa6 {[%clk 0:01:52.3]}
24. Nxc6 {[%clk 0:00:19.6]} 24... Qe8 {[%clk 0:01:52.9]} 25. Nxd8 {[%clk
0:00:19.3]} 25... Qxd8 {[%clk 0:01:53.8]} 26. e5 {[%clk 0:00:09.3]} 26... Nfe8
{[%clk 0:01:51.4]} 27. Qd2 {[%clk 0:00:04.1]} 27... h4 {[%clk 0:01:48.1]} 28. f4
{[%clk 0:00:03.1]} 28... Bf5 {[%clk 0:01:46.6]} 29. b5 {[%clk 0:00:02]} 29...
axb5 {[%clk 0:01:42.3]} 30. axb5 {[%clk 0:00:02.9]} 30... Rb8 {[%clk 0:01:42.9]}
31. Qb4 {[%clk 0:00:01.5]} 31... Qb6 {[%clk 0:01:39.8]} 32. Ra5 {[%clk
0:00:01.2]} 32... Nc7 {[%clk 0:01:40]} 0-1

[Event "*** Titled Tuesday Blitz"]
[Site "Chess.com"]
[Date "2020.04.14"]
[Round "2"]
[White "chessintuit"]
[Black "Charlottemillard17"]
[Result "1-0"]
[WhiteElo "2626"]
[BlackElo "1375"]
[TimeControl "180+1"]
[EndTime "10:15:53 PDT"]
[Termination "chessintuit won by checkmate"]

1. e4 {[%clk 0:03:00.9]} 1... e5 {[%clk 0:02:57.5]} 2. Nf3 {[%clk 0:03:01.1]}
2... Nc6 {[%clk 0:02:55.3]} 3. Bb5 {[%clk 0:03:01.1]} 3... a6 {[%clk 0:02:53.9]}
4. Ba4 {[%clk 0:03:00.4]} 4... Bc5 {[%clk 0:02:52.2]} 5. O-O {[%clk 0:02:56.7]}
5... b5 {[%clk 0:02:51.6]} 6. Bb3 {[%clk 0:02:54.4]} 6... Nf6 {[%clk 0:02:50.8]}
7. c3 {[%clk 0:02:44.1]} 7... h6 {[%clk 0:02:43]} 8. d4 {[%clk 0:02:43.2]} 8...
exd4 {[%clk 0:02:42.5]} 9. cxd4 {[%clk 0:02:44.1]} 9... Bb4 {[%clk 0:02:38.7]}
10. e5 {[%clk 0:02:34.8]} 10... Nh7 {[%clk 0:02:30.8]} 11. Bd2 {[%clk
0:02:21.2]} 11... Bxd2 {[%clk 0:02:09.8]} 12. Nbxd2 {[%clk 0:02:22.1]} 12... O-O
{[%clk 0:02:08.5]} 13. Ne4 {[%clk 0:02:21.2]} 13... Bb7 {[%clk 0:02:05.7]} 14.
Nc5 {[%clk 0:02:19.9]} 14... Bc8 {[%clk 0:02:02.9]} 15. Rc1 {[%clk 0:02:12]}
15... d6 {[%clk 0:01:56.6]} 16. Ne4 {[%clk 0:02:07.1]} 16... Bb7 {[%clk
0:01:51.8]} 17. e6 {[%clk 0:01:58.5]} 17... Na5 {[%clk 0:01:39.9]} 18. exf7+
{[%clk 0:01:57.6]} 18... Kh8 {[%clk 0:01:38.9]} 19. Ned2 {[%clk 0:01:51.7]}
19... Nxb3 {[%clk 0:01:29.9]} 20. Qxb3 {[%clk 0:01:52.6]} 20... Qf6 {[%clk
0:01:27.8]} 21. Rxc7 {[%clk 0:01:51]} 21... Rab8 {[%clk 0:01:20.7]} 22. Re1
{[%clk 0:01:48.2]} 22... Qf5 {[%clk 0:00:56.9]} 23. Nh4 {[%clk 0:01:41.1]} 23...
Qg5 {[%clk 0:00:49.2]} 24. Qg3 {[%clk 0:01:40.9]} 24... Qxg3 {[%clk 0:00:43.7]}
25. hxg3 {[%clk 0:01:41.8]} 25... Ng5 {[%clk 0:00:40.2]} 26. Ng6+ {[%clk
0:01:41.8]} 26... Kh7 {[%clk 0:00:38.8]} 27. Nxf8+ {[%clk 0:01:42]} 27... Rxf8
{[%clk 0:00:38.5]} 28. Rxb7 {[%clk 0:01:40.9]} 28... Nxf7 {[%clk 0:00:37.1]} 29.
Ree7 {[%clk 0:01:40.1]} 29... Kg8 {[%clk 0:00:33]} 30. Ne4 {[%clk 0:01:38.2]}
30... g5 {[%clk 0:00:29]} 31. Nxd6 {[%clk 0:01:36.2]} 31... Nxd6 {[%clk
0:00:18.6]} 32. Rg7+ {[%clk 0:01:36.2]} 32... Kh8 {[%clk 0:00:17.7]} 33. Rh7+
{[%clk 0:01:36.3]} 33... Kg8 {[%clk 0:00:18.1]} 34. Rbg7# {[%clk 0:01:37]} 1-0

[Event "*** Titled Tuesday Blitz"]
[Site "Chess.com"]
[Date "2020.04.14"]
[Round "2"]
[White "MFBerna"]
[Black "Mischuk_D"]
[Result "0-1"]
[WhiteElo "2333"]
[BlackElo "2700"]
[TimeControl "180+1"]
[EndTime "10:15:53 PDT"]
[Termination "Mischuk_D won on time"]

1. e4 {[%clk 0:02:53.2]} 1... c5 {[%clk 0:02:59.4]} 2. Nf3 {[%clk 0:02:53.1]}
2... d6 {[%clk 0:02:59.9]} 3. d4 {[%clk 0:02:50]} 3... cxd4 {[%clk 0:03:00.8]}
4. Nxd4 {[%clk 0:02:50.6]} 4... Nf6 {[%clk 0:03:00.8]} 5. Nc3 {[%clk 0:02:50.4]}
5... a6 {[%clk 0:03:01.3]} 6. Be2 {[%clk 0:02:50.5]} 6... e5 {[%clk 0:03:00.7]}
7. Nb3 {[%clk 0:02:49]} 7... Be7 {[%clk 0:03:01.1]} 8. O-O {[%clk 0:02:48.7]}
8... O-O {[%clk 0:03:00.5]} 9. a4 {[%clk 0:02:48]} 9... b6 {[%clk 0:02:59.9]}
10. f4 {[%clk 0:02:47.6]} 10... Nbd7 {[%clk 0:02:56.9]} 11. Kh1 {[%clk
0:02:45.5]} 11... Bb7 {[%clk 0:02:57.2]} 12. Nd2 {[%clk 0:02:45.2]} 12... Nc5
{[%clk 0:02:56.5]} 13. Bf3 {[%clk 0:02:44.2]} 13... exf4 {[%clk 0:02:55.3]} 14.
Nc4 {[%clk 0:02:26.6]} 14... Ne6 {[%clk 0:02:30.4]} 15. Nd5 {[%clk 0:02:25]}
15... Nxd5 {[%clk 0:02:24]} 16. exd5 {[%clk 0:02:25.9]} 16... Ng5 {[%clk
0:02:24.5]} 17. Bxf4 {[%clk 0:02:17.2]} 17... Nxf3 {[%clk 0:02:24.6]} 18. Qxf3
{[%clk 0:02:17.9]} 18... f5 {[%clk 0:02:24.7]} 19. Be3 {[%clk 0:01:30.7]} 19...
b5 {[%clk 0:02:23.3]} 20. Nb6 {[%clk 0:01:23.6]} 20... Rb8 {[%clk 0:02:22.4]}
21. axb5 {[%clk 0:01:21.7]} 21... axb5 {[%clk 0:02:22.2]} 22. Ra5 {[%clk
0:00:51.2]} 22... Qe8 {[%clk 0:02:15]} 23. Ra7 {[%clk 0:00:29.3]} 23... Bd8
{[%clk 0:02:07.8]} 24. Qf2 {[%clk 0:00:23.5]} 24... Bxb6 {[%clk 0:02:04.2]} 25.
Bxb6 {[%clk 0:00:23.5]} 25... Bxd5 {[%clk 0:02:04.3]} 26. Bd4 {[%clk 0:00:23]}
26... Rb7 {[%clk 0:02:01.8]} 27. Rxb7 {[%clk 0:00:22.7]} 27... Bxb7 {[%clk
0:02:02.7]} 28. Re1 {[%clk 0:00:20.5]} 28... Qd7 {[%clk 0:02:02]} 29. Qg3 {[%clk
0:00:18.1]} 29... Be4 {[%clk 0:02:01.3]} 30. c3 {[%clk 0:00:16.2]} 30... h6
{[%clk 0:02:01.3]} 31. Qg6 {[%clk 0:00:15.6]} 31... d5 {[%clk 0:01:55.9]} 32.
Ra1 {[%clk 0:00:10.6]} 32... Qf7 {[%clk 0:01:55.9]} 33. Qd6 {[%clk 0:00:05.9]}
33... Qh5 {[%clk 0:01:49]} 34. Qe5 {[%clk 0:00:01.9]} 34... Qg6 {[%clk
0:01:46.6]} 0-1

[Event "*** Titled Tuesday Blitz"]
[Site "Chess.com"]
[Date "2020.04.14"]
[Round "2"]
[White "Berardino"]
[Black "Falia-p"]
[Result "1-0"]
[WhiteElo "2690"]
[BlackElo "2331"]
[TimeControl "180+1"]
[EndTime "10:15:54 PDT"]
[Termination "Berardino won by resignation"]

1. e4 {[%clk 0:03:00.9]} 1... c6 {[%clk 0:03:00]} 2. d4 {[%clk 0:02:59.2]} 2...
d5 {[%clk 0:03:00.9]} 3. Nc3 {[%clk 0:02:57.3]} 3... dxe4 {[%clk 0:03:01.1]} 4.
Nxe4 {[%clk 0:02:58.2]} 4... Nf6 {[%clk 0:03:01.4]} 5. Ng3 {[%clk 0:02:56.3]}
5... h5 {[%clk 0:02:59.7]} 6. h4 {[%clk 0:02:51.9]} 6... Bg4 {[%clk 0:02:58.9]}
7. Be2 {[%clk 0:02:51.4]} 7... Qd5 {[%clk 0:02:56.9]} 8. Bxg4 {[%clk 0:02:44]}
8... hxg4 {[%clk 0:02:50.8]} 9. Rh2 {[%clk 0:02:23.3]} 9... e6 {[%clk 0:02:49]}
10. N1e2 {[%clk 0:02:20.1]} 10... Na6 {[%clk 0:02:44.9]} 11. c3 {[%clk
0:02:18.4]} 11... O-O-O {[%clk 0:02:41.9]} 12. Nf4 {[%clk 0:02:16.4]} 12... Qb5
{[%clk 0:02:33.3]} 13. Qe2 {[%clk 0:02:15.1]} 13... Qxe2+ {[%clk 0:02:31.5]} 14.
Kxe2 {[%clk 0:02:11.7]} 14... c5 {[%clk 0:02:32.4]} 15. Be3 {[%clk 0:02:05]}
15... cxd4 {[%clk 0:02:32.3]} 16. cxd4 {[%clk 0:01:58.1]} 16... Kb8 {[%clk
0:02:27.8]} 17. a3 {[%clk 0:01:56.8]} 17... Nc7 {[%clk 0:02:26.2]} 18. h5 {[%clk
0:01:56.3]} 18... Ncd5 {[%clk 0:02:25.4]} 19. Rhh1 {[%clk 0:01:50.4]} 19... Bd6
{[%clk 0:02:24.7]} 20. Nxd5 {[%clk 0:01:42.1]} 20... Nxd5 {[%clk 0:02:24.5]} 21.
Ne4 {[%clk 0:01:42.2]} 21... Be7 {[%clk 0:02:20.1]} 22. g3 {[%clk 0:01:30.1]}
22... Rc8 {[%clk 0:02:17.8]} 23. Kd3 {[%clk 0:01:26.6]} 23... f5 {[%clk
0:02:15.3]} 24. Nd2 {[%clk 0:01:19.3]} 24... Nf6 {[%clk 0:02:09.9]} 25. h6
{[%clk 0:01:15.5]} 25... gxh6 {[%clk 0:02:07.3]} 26. Rxh6 {[%clk 0:01:10.6]}
26... Rxh6 {[%clk 0:02:06.5]} 27. Bxh6 {[%clk 0:01:11.5]} 27... Ne4 {[%clk
0:02:06.4]} 28. Nxe4 {[%clk 0:01:09.7]} 28... fxe4+ {[%clk 0:02:06.8]} 29. Kxe4
{[%clk 0:01:09.9]} 29... Rc2 {[%clk 0:02:06.8]} 30. Bf4+ {[%clk 0:01:07.2]}
30... Kc8 {[%clk 0:01:54.8]} 31. Rc1 {[%clk 0:01:07.2]} 31... Rxc1 {[%clk
0:01:54.4]} 32. Bxc1 {[%clk 0:01:08.1]} 32... Kd7 {[%clk 0:01:54.5]} 33. Kf4
{[%clk 0:01:06.3]} 33... Bf6 {[%clk 0:01:53.8]} 34. Be3 {[%clk 0:01:05.5]} 34...
Kd6 {[%clk 0:01:53.4]} 35. Kxg4 {[%clk 0:01:05.7]} 35... Kd5 {[%clk 0:01:53.8]}
36. Kh5 {[%clk 0:00:51.1]} 36... Kc4 {[%clk 0:01:53.5]} 37. Kg6 {[%clk
0:00:44.5]} 37... Bd8 {[%clk 0:01:47.8]} 38. Kf7 {[%clk 0:00:41.7]} 38... Kb3
{[%clk 0:01:47.8]} 39. Kxe6 {[%clk 0:00:36.8]} 39... Kxb2 {[%clk 0:01:48.2]} 40.
g4 {[%clk 0:00:36.4]} 40... Kxa3 {[%clk 0:01:48]} 41. g5 {[%clk 0:00:36.8]}
41... Bxg5 {[%clk 0:01:41]} 42. Bxg5 {[%clk 0:00:37.7]} 42... b5 {[%clk
0:01:41.6]} 43. d5 {[%clk 0:00:37.6]} 43... b4 {[%clk 0:01:42.5]} 44. d6 {[%clk
0:00:37.3]} 44... b3 {[%clk 0:01:43.1]} 45. Bf6 {[%clk 0:00:37.6]} 45... a5
{[%clk 0:01:42.4]} 46. d7 {[%clk 0:00:37.6]} 46... a4 {[%clk 0:01:43.3]} 47.
d8=Q {[%clk 0:00:37.8]} 1-0

[Event "*** Titled Tuesday Blitz"]
[Site "Chess.com"]
[Date "2020.04.14"]
[Round "2"]
[White "Spalir"]
[Black "Torrentec"]
[Result "0-1"]
[WhiteElo "2606"]
[BlackElo "2320"]
[TimeControl "180+1"]
[EndTime "10:15:55 PDT"]
[Termination "Torrentec won by resignation"]

1. e4 {[%clk 0:03:00.9]} 1... e5 {[%clk 0:02:59.8]} 2. Nc3 {[%clk 0:03:00.5]}
2... Bc5 {[%clk 0:02:59.5]} 3. f4 {[%clk 0:02:59.3]} 3... d6 {[%clk 0:02:59.8]}
4. Nf3 {[%clk 0:02:59.3]} 4... Nc6 {[%clk 0:03:00]} 5. Bc4 {[%clk 0:02:57]} 5...
a6 {[%clk 0:03:00.1]} 6. d3 {[%clk 0:02:56.9]} 6... Bg4 {[%clk 0:02:59.3]} 7. h3
{[%clk 0:02:55.9]} 7... Bxf3 {[%clk 0:02:57.2]} 8. Qxf3 {[%clk 0:02:56.8]} 8...
Nd4 {[%clk 0:02:57.9]} 9. Qd1 {[%clk 0:02:56.9]} 9... Qh4+ {[%clk 0:02:56.9]}
10. Kf1 {[%clk 0:02:53.8]} 10... Nb3 {[%clk 0:02:46.4]} 11. Qe2 {[%clk
0:02:37.9]} 11... Nxa1 {[%clk 0:02:42.6]} 12. f5 {[%clk 0:02:19]} 12... Nf6
{[%clk 0:02:34.9]} 13. Nd5 {[%clk 0:02:12.1]} 13... Nxd5 {[%clk 0:02:33]} 14.
Bxd5 {[%clk 0:02:13]} 14... c6 {[%clk 0:02:29.2]} 15. Bc4 {[%clk 0:02:10.6]}
15... b5 {[%clk 0:02:28.6]} 16. Bb3 {[%clk 0:02:08.1]} 16... Nxb3 {[%clk
0:02:28.8]} 17. axb3 {[%clk 0:02:09]} 17... O-O {[%clk 0:02:26.1]} 18. Bd2
{[%clk 0:02:06.5]} 18... a5 {[%clk 0:02:25.8]} 19. Qf3 {[%clk 0:02:04.7]} 19...
b4 {[%clk 0:02:21.7]} 20. g3 {[%clk 0:02:05.1]} 20... Qf6 {[%clk 0:02:19.8]} 21.
Kg2 {[%clk 0:02:03.9]} 21... a4 {[%clk 0:02:19.3]} 22. bxa4 {[%clk 0:02:03.7]}
22... Rxa4 {[%clk 0:02:18.8]} 23. g4 {[%clk 0:02:04.6]} 23... Ra2 {[%clk
0:02:13.7]} 24. g5 {[%clk 0:02:04.6]} 24... Qd8 {[%clk 0:02:10.8]} 25. f6 {[%clk
0:02:04.5]} 25... g6 {[%clk 0:02:07.8]} 26. h4 {[%clk 0:02:01.8]} 26... Rxb2
{[%clk 0:02:06.3]} 27. h5 {[%clk 0:01:34]} 27... Rxc2 {[%clk 0:02:05.7]} 28. Qd1
{[%clk 0:01:32.6]} 28... b3 {[%clk 0:02:00.8]} 29. hxg6 {[%clk 0:01:31.2]} 29...
fxg6 {[%clk 0:01:58.8]} 30. Rxh7 {[%clk 0:01:25.9]} 30... Rxd2+ {[%clk 0:01:33]}
31. Qxd2 {[%clk 0:01:25.3]} 31... Kxh7 {[%clk 0:01:32.6]} 32. Qd1 {[%clk
0:01:21.3]} 32... Rh8 {[%clk 0:01:27.5]} 33. Qxb3 {[%clk 0:01:19.2]} 33... Qd7
{[%clk 0:01:23.8]} 34. Kg3 {[%clk 0:01:12.7]} 34... d5 {[%clk 0:01:18.9]} 35.
Qa2 {[%clk 0:01:12.4]} 35... Kg8 {[%clk 0:01:03.7]} 36. Qa8+ {[%clk 0:01:11.3]}
36... Bf8 {[%clk 0:01:03.9]} 37. Kf2 {[%clk 0:01:04.9]} 37... Rh2+ {[%clk
0:01:00.2]} 0-1

[Event "*** Titled Tuesday Blitz"]
[Site "Chess.com"]
[Date "2020.04.14"]
[Round "2"]
[White "Leo_C"]
[Black "malandragem"]
[Result "0-1"]
[WhiteElo "2263"]
[BlackElo "2507"]
[TimeControl "180+1"]
[EndTime "10:15:56 PDT"]
[Termination "malandragem won by resignation"]

1. d4 {[%clk 0:03:00.9]} 1... Nf6 {[%clk 0:02:59.9]} 2. c4 {[%clk 0:03:00.4]}
2... g6 {[%clk 0:03:00]} 3. f3 {[%clk 0:02:59]} 3... Bg7 {[%clk 0:03:00.3]} 4.
e4 {[%clk 0:02:59.3]} 4... d6 {[%clk 0:03:00.8]} 5. Nc3 {[%clk 0:02:59.6]} 5...
O-O {[%clk 0:03:01.2]} 6. Be3 {[%clk 0:02:59.9]} 6... Nbd7 {[%clk 0:03:01.9]} 7.
Nge2 {[%clk 0:02:59.7]} 7... a6 {[%clk 0:03:02.5]} 8. Qd2 {[%clk 0:02:59.5]}
8... b5 {[%clk 0:03:03]} 9. cxb5 {[%clk 0:02:58.7]} 9... axb5 {[%clk 0:03:03.9]}
10. Nxb5 {[%clk 0:02:59.3]} 10... c6 {[%clk 0:03:03.4]} 11. Nbc3 {[%clk
0:02:58.9]} 11... e5 {[%clk 0:03:04]} 12. dxe5 {[%clk 0:02:55.9]} 12... Nxe5
{[%clk 0:03:02.8]} 13. Nd4 {[%clk 0:02:55.9]} 13... d5 {[%clk 0:02:46.8]} 14.
Be2 {[%clk 0:02:40.5]} 14... dxe4 {[%clk 0:02:40.9]} 15. fxe4 {[%clk 0:02:40.4]}
15... Neg4 {[%clk 0:02:29.1]} 16. Bg5 {[%clk 0:02:29]} 16... Qb6 {[%clk
0:02:25.7]} 17. h3 {[%clk 0:02:19.9]} 17... Rd8 {[%clk 0:02:12.5]} 18. Rd1
{[%clk 0:01:57.1]} 18... c5 {[%clk 0:02:03.5]} 19. Nd5 {[%clk 0:01:37.5]} 19...
Rxd5 {[%clk 0:01:48.4]} 20. exd5 {[%clk 0:01:35.1]} 20... Ne4 {[%clk 0:01:48.8]}
21. Qc2 {[%clk 0:01:09.2]} 21... Nxg5 {[%clk 0:01:28.9]} 22. hxg4 {[%clk
0:01:02.8]} 22... Bxd4 {[%clk 0:01:28.6]} 23. Qd2 {[%clk 0:00:40.9]} 23... Ne4
{[%clk 0:01:05.6]} 24. Qh6 {[%clk 0:00:33.5]} 24... Qb4+ {[%clk 0:01:00.5]} 25.
Rd2 {[%clk 0:00:29.1]} 25... Qxd2+ {[%clk 0:00:54.6]} 26. Qxd2 {[%clk 0:00:30]}
26... Nxd2 {[%clk 0:00:55.4]} 27. Kxd2 {[%clk 0:00:30.9]} 27... Rxa2 {[%clk
0:00:55.9]} 0-1

[Event "*** Titled Tuesday Blitz"]
[Site "Chess.com"]
[Date "2020.04.14"]
[Round "2"]
[White "MartinMatthiesen"]
[Black "Playgood28"]
[Result "1-0"]
[WhiteElo "2425"]
[BlackElo "2157"]
[TimeControl "180+1"]
[EndTime "10:15:56 PDT"]
[Termination "MartinMatthiesen won by resignation"]

1. d4 {[%clk 0:02:58.3]} 1... f5 {[%clk 0:02:58.2]} 2. Nf3 {[%clk 0:02:57.5]}
2... g6 {[%clk 0:02:56]} 3. g3 {[%clk 0:02:57.8]} 3... Nf6 {[%clk 0:02:55.7]} 4.
Bg2 {[%clk 0:02:58.1]} 4... Bg7 {[%clk 0:02:56]} 5. O-O {[%clk 0:02:58.4]} 5...
d6 {[%clk 0:02:56.4]} 6. b3 {[%clk 0:02:58.8]} 6... O-O {[%clk 0:02:55.4]} 7.
Bb2 {[%clk 0:02:59.1]} 7... Nc6 {[%clk 0:02:51.6]} 8. c4 {[%clk 0:02:58.9]} 8...
Qe8 {[%clk 0:02:48.5]} 9. Nc3 {[%clk 0:02:57.5]} 9... e5 {[%clk 0:02:47.1]} 10.
dxe5 {[%clk 0:02:57.4]} 10... dxe5 {[%clk 0:02:46.1]} 11. Nd5 {[%clk 0:02:47.5]}
11... e4 {[%clk 0:02:19.3]} 12. Nxc7 {[%clk 0:02:46.5]} 12... Qe7 {[%clk
0:02:17.8]} 13. Nxa8 {[%clk 0:02:35.9]} 13... exf3 {[%clk 0:02:16.6]} 14. Bxf3
{[%clk 0:02:35.1]} 14... Be6 {[%clk 0:02:09.2]} 15. Qd2 {[%clk 0:02:12.2]} 15...
Rxa8 {[%clk 0:02:06.9]} 16. Rfd1 {[%clk 0:02:11.8]} 16... Re8 {[%clk 0:01:46.7]}
17. Qd6 {[%clk 0:02:06.8]} 17... Qxd6 {[%clk 0:01:40.8]} 18. Rxd6 {[%clk
0:02:05.8]} 18... Ne4 {[%clk 0:01:40.3]} 19. Bxe4 {[%clk 0:02:05.4]} 19... Bxb2
{[%clk 0:01:34.8]} 20. Bxc6 {[%clk 0:01:58.1]} 20... bxc6 {[%clk 0:01:30.9]} 21.
Rb1 {[%clk 0:01:55.8]} 21... Be5 {[%clk 0:01:20.8]} 22. Rxc6 {[%clk 0:01:54.8]}
22... Kf7 {[%clk 0:01:20.3]} 23. Rd1 {[%clk 0:01:51.8]} 23... Rc8 {[%clk
0:01:07.8]} 24. Rxc8 {[%clk 0:01:50]} 24... Bxc8 {[%clk 0:01:06.6]} 25. Rd8
{[%clk 0:01:40.7]} 25... Be6 {[%clk 0:01:03.2]} 26. e3 {[%clk 0:01:37.5]} 26...
a5 {[%clk 0:01:00.8]} 27. Ra8 {[%clk 0:01:34.6]} 27... Bc3 {[%clk 0:01:00.3]}
28. Ra7+ {[%clk 0:01:33.2]} 28... Kg8 {[%clk 0:00:57]} 29. c5 {[%clk 0:01:31.5]}
29... Kf8 {[%clk 0:00:30.6]} 30. c6 {[%clk 0:01:22.6]} 30... Ke8 {[%clk
0:00:30]} 31. Ra8+ {[%clk 0:01:22.4]} 31... Ke7 {[%clk 0:00:28.9]} 32. c7 {[%clk
0:01:22.4]} 1-0

[Event "*** Titled Tuesday Blitz"]
[Site "Chess.com"]
[Date "2020.04.14"]
[Round "2"]
[White "korason34"]
[Black "icychess54"]
[Result "1-0"]
[WhiteElo "2481"]
[BlackElo "2215"]
[TimeControl "180+1"]
[EndTime "10:15:57 PDT"]
[Termination "korason34 won on time"]

1. d4 {[%clk 0:03:00.9]} 1... d5 {[%clk 0:02:59.3]} 2. c4 {[%clk 0:02:57.6]}
2... c6 {[%clk 0:02:58.9]} 3. Nf3 {[%clk 0:02:57.1]} 3... Nf6 {[%clk 0:02:58.7]}
4. Nc3 {[%clk 0:02:57.2]} 4... e6 {[%clk 0:02:58.9]} 5. Bg5 {[%clk 0:02:56.5]}
5... Nbd7 {[%clk 0:02:59]} 6. e3 {[%clk 0:02:55.8]} 6... Qa5 {[%clk 0:02:59.4]}
7. Nd2 {[%clk 0:02:55.2]} 7... Bb4 {[%clk 0:02:59.2]} 8. Qc2 {[%clk 0:02:53.9]}
8... Ne4 {[%clk 0:02:58.8]} 9. Ndxe4 {[%clk 0:02:48.8]} 9... dxe4 {[%clk
0:02:58.3]} 10. Bh4 {[%clk 0:02:48.8]} 10... e5 {[%clk 0:02:54]} 11. Be2 {[%clk
0:02:43.9]} 11... exd4 {[%clk 0:02:47.6]} 12. exd4 {[%clk 0:02:44.8]} 12... O-O
{[%clk 0:02:45.8]} 13. O-O {[%clk 0:02:44.6]} 13... Re8 {[%clk 0:02:38.5]} 14.
Nxe4 {[%clk 0:02:38.1]} 14... Nf8 {[%clk 0:02:23.8]} 15. a3 {[%clk 0:02:35.2]}
15... Bf5 {[%clk 0:01:43.3]} 16. Bd3 {[%clk 0:02:14.7]} 16... Bxe4 {[%clk
0:01:22.9]} 17. Bxe4 {[%clk 0:02:11.1]} 17... Qh5 {[%clk 0:01:16.5]} 18. Bg3
{[%clk 0:02:03.3]} 18... Be7 {[%clk 0:01:15.1]} 19. Rad1 {[%clk 0:02:01.9]}
19... Ne6 {[%clk 0:01:06.4]} 20. Bf3 {[%clk 0:01:57]} 20... Qg5 {[%clk
0:00:59.7]} 21. d5 {[%clk 0:01:55.2]} 21... Nf4 {[%clk 0:00:55.4]} 22. dxc6
{[%clk 0:01:53.6]} 22... h5 {[%clk 0:00:42.5]} 23. cxb7 {[%clk 0:01:52]} 23...
Rab8 {[%clk 0:00:41.2]} 24. Rfe1 {[%clk 0:01:43.1]} 24... Bc5 {[%clk 0:00:21.8]}
25. Rxe8+ {[%clk 0:01:31.3]} 25... Rxe8 {[%clk 0:00:22.7]} 26. Qd2 {[%clk
0:01:27.1]} 26... Bxf2+ {[%clk 0:00:01.5]} 27. Qxf2 {[%clk 0:01:25]} 1-0